[Event "2nd Kalyan Dombivali 2019"]
[Site "Kalyan"]
[Date "2019.02.03"]
[Round "10"]
[White "Satkar, Chirag"]
[Black "Ankur Mahesh Gokhale"]
[Result "1/2-1/2"]
[ECO "A52"]
[WhiteElo "2071"]
[BlackElo "1628"]
[Annotator "NA RC"]
[PlyCount "64"]
[EventDate "2019.01.28"]
[EventType "swiss"]
[EventRounds "10"]
[EventCountry "IND"]
[SourceTitle "playchess.com"]
[Source "ChessBase"]
[SourceQuality "1"]
[TimeControl "5400+30"]

{[%evp 8,64,46,31,29,41,33,33,43,21,17,18,18,15,36,32767,19,19,21,10,37,23,32767,21,34,12,17,19,22,0,17,8,22,6,32,11,29,35,31,28,32767,38,31,29,60,62,69,71,62,45,58,35,35,33,57,58,50,8,8]} 1. d4 {[%emt 0:05:41]} Nf6 {[%emt 0:00:00]} 2. c4 {[%emt 0:00:31]} e5 {[%emt 0:00:00]} 3. dxe5 {[%emt 0:00:14]} Ng4 {[%emt 0:00:00]} 4. Nf3 {[%emt 0:00:28]} Bc5 {[%emt 0:00:06]} 5. e3 {[%emt 0:00:15]} Nc6 {[%emt 0:00:03]} 6. Nc3 {[%emt 0:00:40]} O-O {[%emt 0:00:08]} 7. Be2 {[%emt 0:00:39]} Re8 {[%emt 0:00:20]} 8. O-O {[%emt 0:00:21]} Ngxe5 {[%emt 0:00:03]} 9. Nxe5 {[%emt 0:01:12]} Nxe5 {[%emt 0:00:05]} 10. b3 {[%emt 0:00:25]} a5 {[%emt 0:00:10]} 11. Na4 {[%emt 0:01:06]} d6 {[%emt 0:02:30]} 12. Nxc5 {[%emt 0:06:55]} dxc5 {[%emt 0:00:13]} 13. Bb2 {[%emt 0:09:44]} Qe7 {[%emt 0:14:30]} 14. Qd5 {[%emt 0:04:57]} Bd7 {[%emt 0:15:29]} 15. Rad1 {[%emt 0:11:06]} Bc6 {[%emt 0:01:16]} 16. Qxe5 {[%emt 0:00:28]} Qxe5 {[%emt 0:00:07]} 17. Bxe5 {[%emt 0:00:05]} Rxe5 {[%emt 0:00:05]} 18. a4 {[%emt 0:00:47]} Rg5 {[%emt 0:03:42]} 19. g3 {[%emt 0:01:36]} Re5 {[%emt 0:00:20]} 20. Rd2 {[%emt 0:05:16]} Rae8 {[%emt 0:03:50]} 21. Rfd1 {[%emt 0:01:58]} Kf8 {[%emt 0:07:51]} 22. Bf1 {[%emt 0:11:37]} Bf3 {[%emt 0:02:30]} 23. Rc1 {[%emt 0:02:20]} R5e6 {[%emt 0:06:48]} 24. Bg2 {[%emt 0:08:19]} Bxg2 {[%emt 0:01:47]} 25. Kxg2 {[%emt 0:00:02]} Rd6 {[%emt 0:01:09]} 26. Rxd6 {[%emt 0:00:33]} cxd6 {[%emt 0:00:05]} 27. Rd1 {[%emt 0:00:03]} Re6 {[%emt 0:00:43]} 28. Rd3 {[%emt 0:01:49]} Ke7 {[%emt 0:00:11]} 29. f4 {[%emt 0:00:20]} f5 {[%emt 0:00:50]} 30. Kf3 {[%emt 0:00:49]} Rh6 {[%emt 0:00:45]} 31. Rd2 {[%emt 0:01:02]} Re6 {[%emt 0:02:44]} 32. Re2 {[%emt 0:01:40]} d5 $11 {[%emt 0:04:43] Ke4} 1/2-1/2

[Event "2nd Kalyan Dombivali 2019"]
[Site "Kalyan"]
[Date "2019.02.03"]
[Round "10"]
[White "Kadam Om Manish"]
[Black "Javheri, Jaydev"]
[Result "1-0"]
[ECO "B56"]
[WhiteElo "1944"]
[BlackElo "1675"]
[Annotator "NA RC"]
[PlyCount "99"]
[EventDate "2019.01.28"]
[EventType "swiss"]
[EventRounds "10"]
[EventCountry "IND"]
[SourceTitle "playchess.com"]
[Source "ChessBase"]
[SourceQuality "1"]
[TimeControl "5400+30"]

{[%evp 8,92,31,28,33,0,58,28,60,27,36,32767,32767,32767,37,41,42,45,86,79,89,112,104,89,111,52,74,46,79,68,72,62,158,164,152,32767,157,185,178,168,173,175,185,79,254,241,245,287,254,281,304,282,303,341,306,308,356,347,461,458,347,354,385,531,506,852,706,32767,918,3843,1780,1948,32767,32767,29969,29981,32767,32767,32767,32767,29984,29985,29984,29986,29986,29987,29989]} 1. e4 {[%emt 0:00:00]} c5 {[%emt 0:00:00]} 2. Nf3 {[%emt 0:00:28]} d6 {[%emt 0:00:00]} 3. d4 {[%emt 0:00:29]} cxd4 {[%emt 0:00:00]} 4. Nxd4 {[%emt 0:00:30]} Nf6 {[%emt 0:00:00]} 5. Nc3 {[%emt 0:00:31]} Nc6 {[%emt 0:00:00]} 6. g3 {[%emt 0:01:02]} h5 {[%emt 0:06:17]} 7. h3 {[%emt 0:02:11]} g6 {[%emt 0:01:52]} 8. Be3 {[%emt 0:02:00]} Bg7 {[%emt 0:00:20]} 9. Bg2 {[%emt 0:00:55]} Bd7 {[%emt 0:02:42]} 10. Nde2 {[%emt 0:01:41]} Qa5 {[%emt 0:10:01]} 11. f4 {[%emt 0:01:45]} Rc8 {[%emt 0:12:45]} 12. O-O {[%emt 0:03:30]} h4 {[%emt 0:05:29]} 13. g4 {[%emt 0:10:06]} Nxg4 {[%emt 0:14:20]} 14. hxg4 {[%emt 0:01:23]} Bxg4 {[%emt 0:00:06]} 15. Bf3 {[%emt 0:03:39]} Qh5 {[%emt 0:05:02]} 16. Nc1 {[%emt 0:03:29]} ({White should play} 16. Nd4 $16 f5 17. exf5 Bxf3 18. Nxf3 (18. Rxf3 Nxd4 19. Bxd4 Bxd4+ 20. Qxd4 Qxf3 $16)) 16... Bxf3 {[%emt 0:04:01]} 17. Qxf3 {[%emt 0:00:14]} Qxf3 {[%emt 0:00:27]} 18. Rxf3 {[%emt 0:00:02]} Bxc3 {[%emt 0:02:40]} 19. bxc3 {[%emt 0:00:01]} f5 {[%emt 0:00:42]} ({Better is} 19... f6 $14) 20. exf5 {[%emt 0:01:22]} gxf5 {[%emt 0:00:09]} 21. Nb3 {[%emt 0:01:38]} Kf7 {[%emt 0:00:30]} 22. Nd4 {[%emt 0:02:29]} Nxd4 {[%emt 0:03:33]} 23. Bxd4 {[%emt 0:00:07]} Rhg8+ {[%emt 0:00:06]} 24. Kh2 {[%emt 0:00:58]} Rg4 {[%emt 0:02:07]} 25. Bxa7 {[%emt 0:00:29]} (25. a4 $18) 25... Rcg8 $2 {[%emt 0:01:04]} (25... Rg3 $16 26. Rxg3 hxg3+ 27. Kxg3 Rxc3+ 28. Kh4 Rxc2) 26. Rf2 {[%emt 0:05:01]} h3 {[%emt 0:01:56]} 27. Bd4 {[%emt 0:03:21]} Rg2+ {[%emt 0:03:34]} 28. Rxg2 {[%emt 0:01:40]} Rxg2+ {[%emt 0:00:34]} 29. Kxh3 {[%emt 0:00:01]} Rxc2 {[%emt 0:00:38]} 30. a4 {[%emt 0:01:00]} Rb2 {[%emt 0:02:02]} 31. Kg3 {[%emt 0:01:01]} Ke8 {[%emt 0:01:00]} 32. Kh4 {[%emt 0:04:24]} Rg2 {[%emt 0:01:16]} 33. Rg1 {[%emt 0:01:33]} Ra2 {[%emt 0:07:20]} 34. Kg5 {[%emt 0:01:25]} Rxa4 {[%emt 0:01:51]} 35. Kxf5 {[%emt 0:00:09]} Kd7 {[%emt 0:00:14]} 36. Rg7 {[%emt 0:00:46]} Ra5+ {[%emt 0:00:13]} 37. Kg6 {[%emt 0:00:08]} Ra2 {[%emt 0:04:47]} 38. Bf6 {[%emt 0:02:24]} Rg2+ {[%emt 0:06:10]} 39. Kf5 {[%emt 0:00:18]} (39. Bg5 $142 d5 40. Rxe7+ Kd6 41. Rxb7) 39... Re2 {[%emt 0:01:57] [#]} 40. Bxe7 $1 {[%emt 0:01:03]} Rxe7 {[%emt 0:00:28]} 41. Kf6 {[%emt 0:00:03]} Rxg7 {[%emt 0:00:39]} 42. Kxg7 {[%emt 0:00:01]} Ke6 {[%emt 0:00:16]} 43. Kg6 {[%emt 0:00:03]} Ke7 {[%emt 0:00:34]} 44. f5 {[%emt 0:00:03]} Kf8 {[%emt 0:01:20]} 45. Kf6 {[%emt 0:01:37]} d5 {[%emt 0:00:14]} 46. Ke6 {[%emt 0:00:10]} b5 {[%emt 0:00:18]} 47. Kxd5 {[%emt 0:00:07]} Kf7 {[%emt 0:00:05]} 48. Kc5 {[%emt 0:00:02]} Kf6 {[%emt 0:00:13]} 49. Kxb5 {[%emt 0:00:03]} Kxf5 {[%emt 0:00:04]} 50. Kc6 {[%emt 0:00:07]} 1-0

[Event "2nd Kalyan Dombivali 2019"]
[Site "Kalyan"]
[Date "2019.02.03"]
[Round "10"]
[White "Vijay, Anand M."]
[Black "Ahmed, Feroz"]
[Result "1-0"]
[ECO "B06"]
[WhiteElo "1841"]
[BlackElo "1919"]
[Annotator "NA RC"]
[PlyCount "55"]
[EventDate "2019.01.28"]
[EventType "swiss"]
[EventRounds "10"]
[EventCountry "IND"]
[SourceTitle "playchess.com"]
[Source "ChessBase"]
[SourceQuality "1"]
[TimeControl "5400+30"]

{[%evp 8,51,58,44,62,38,61,1,-4,-13,32767,0,-2,-5,51,32767,45,35,80,32767,89,52,90,64,166,65,171,182,174,70,132,127,225,196,672,263,238,305,404,412,588,698,1395,2472,29991,29992]} 1. e4 {[%emt 0:20:35]} g6 {[%emt 0:00:55]} 2. d4 {[%emt 0:00:09]} Bg7 {[%emt 0:00:16]} 3. Nc3 {[%emt 0:00:06]} d6 {[%emt 0:00:23]} 4. Be3 {[%emt 0:00:06]} Nd7 {[%emt 0:04:29]} 5. h4 {[%emt 0:00:47]} Ngf6 {[%emt 0:06:19]} 6. Qd2 {[%emt 0:00:46]} Ng4 {[%emt 0:00:59]} 7. Bg5 {[%emt 0:00:43]} ({White should play} 7. h5 $14) 7... h6 {[%emt 0:01:26]} 8. Bf4 {[%emt 0:00:05]} e5 {[%emt 0:03:20]} 9. dxe5 {[%emt 0:00:06]} dxe5 {[%emt 0:00:16]} 10. Bg3 {[%emt 0:00:18]} c6 {[%emt 0:06:10]} 11. f3 {[%emt 0:05:36]} Ngf6 {[%emt 0:00:19]} 12. O-O-O {[%emt 0:00:34]} Nh5 {[%emt 0:04:14]} 13. Bf2 {[%emt 0:00:52]} Nf4 {[%emt 0:12:02]} 14. g3 {[%emt 0:05:31]} Ne6 {[%emt 0:00:33]} 15. Bh3 {[%emt 0:00:03]} O-O {[%emt 0:05:58]} (15... Qe7 $14) 16. Be3 {[%emt 0:03:42]} (16. Bxe6 $1 $18 fxe6 17. Be3) 16... Kh7 {[%emt 0:00:35]} (16... Nb6 $1 $14) 17. Bxe6 {[%emt 0:01:22]} fxe6 {[%emt 0:00:12] [#]} 18. Qd6 {[%emt 0:00:06]} ({White should try} 18. f4 $1 $18) 18... Re8 {[%emt 0:03:07]} 19. Nh3 {[%emt 0:00:51]} Qa5 {[%emt 0:04:14]} (19... Qf6 $16 {was necessary.}) 20. h5 {[%emt 0:04:38]} Nb6 $2 {[%emt 0:09:03]} (20... g5 21. Nf2 Bf8) 21. hxg6+ $2 {[%emt 0:01:02]} (21. Qc7 Kh8 22. hxg6) 21... Kxg6 {[%emt 0:00:51]} 22. Qd3 {[%emt 0:05:14]} Qb4 {[%emt 0:10:24]} 23. a3 {[%emt 0:01:18]} Qc4 {[%emt 0:01:10]} 24. Qd2 {[%emt 0:00:13]} Qa6 {[%emt 0:02:24]} 25. Qh2 {[%emt 0:05:50]} Nc4 {[%emt 0:03:15] [#]} 26. Bxh6 {[%emt 0:05:37]} Bxh6+ {[%emt 0:08:47]} 27. Nf4+ {[%emt 0:00:06]} Bxf4+ {[%emt 0:00:26]} 28. gxf4 {[%emt 0:00:07]} 1-0

[Event "2nd Kalyan Dombivali 2019"]
[Site "Kalyan"]
[Date "2019.02.03"]
[Round "10"]
[White "Nehete Akshay S"]
[Black "Vedant Nitin vekhande"]
[Result "1-0"]
[ECO "A52"]
[WhiteElo "1788"]
[BlackElo "1564"]
[Annotator "NA RC"]
[PlyCount "137"]
[EventDate "2019.01.28"]
[EventType "swiss"]
[EventRounds "10"]
[EventCountry "IND"]
[SourceTitle "playchess.com"]
[Source "ChessBase"]
[SourceQuality "1"]
[TimeControl "5400+30"]

1. d4 {[%emt 0:00:00]} Nf6 {[%emt 0:02:52]} 2. c4 {[%emt 0:00:30]} e5 {[%emt 0:00:09]} 3. dxe5 {[%emt 0:00:05]} Ng4 {[%emt 0:00:07]} 4. Nf3 {[%emt 0:00:04]} Nc6 {[%emt 0:00:07]} 5. Bf4 {[%emt 0:00:13]} Bb4+ {[%emt 0:00:07]} 6. Nc3 {[%emt 0:00:56]} Qe7 {[%emt 0:00:09]} 7. Qb3 {[%emt 0:13:26]} Bc5 {[%emt 0:01:54]} 8. e3 {[%emt 0:02:37]} Ngxe5 {[%emt 0:00:54]} 9. Nxe5 {[%emt 0:16:10]} Nxe5 {[%emt 0:00:24]} 10. Nd5 {[%emt 0:00:05]} Qd6 {[%emt 0:00:49]} 11. Qc3 {[%emt 0:01:26]} f6 {[%emt 0:00:30]} 12. O-O-O {[%emt 0:00:25]} O-O {[%emt 0:01:42]} 13. b4 {[%emt 0:02:53]} c6 {[%emt 0:02:15]} 14. bxc5 {[%emt 0:00:42]} Qxc5 {[%emt 0:00:17]} 15. Qb4 {[%emt 0:00:35]} Qxb4 {[%emt 0:02:32]} 16. Nxb4 {[%emt 0:00:02]} a5 {[%emt 0:00:52]} 17. Nc2 {[%emt 0:00:53]} d5 {[%emt 0:02:17]} 18. cxd5 {[%emt 0:05:46]} cxd5 {[%emt 0:00:09]} 19. Bxe5 {[%emt 0:00:47]} fxe5 {[%emt 0:00:07]} 20. f3 {[%emt 0:04:22]} Be6 {[%emt 0:00:42]} 21. Kb2 {[%emt 0:00:08]} e4 {[%emt 0:01:16]} 22. f4 {[%emt 0:00:59]} Rac8 {[%emt 0:02:21]} 23. Nd4 {[%emt 0:00:18]} Bf7 {[%emt 0:01:33]} 24. Be2 {[%emt 0:00:14]} Rc7 {[%emt 0:00:43]} 25. Rc1 {[%emt 0:00:05]} Rfc8 {[%emt 0:00:17]} 26. Rxc7 {[%emt 0:00:02]} Rxc7 {[%emt 0:00:08]} 27. Rc1 {[%emt 0:00:03]} Rxc1 {[%emt 0:00:06]} 28. Kxc1 {[%emt 0:00:03]} Kf8 {[%emt 0:00:06]} 29. Nf5 {[%emt 0:00:55]} Be6 {[%emt 0:07:43]} 30. Nd4 {[%emt 0:02:00]} Bd7 {[%emt 0:00:08]} 31. Bb5 {[%emt 0:00:49]} Bc8 {[%emt 0:00:19]} 32. Nb3 {[%emt 0:00:17]} b6 {[%emt 0:00:26]} 33. Bc6 {[%emt 0:00:02]} Be6 {[%emt 0:00:07]} 34. Nd4 {[%emt 0:03:25]} Bf7 {[%emt 0:00:19]} 35. g4 {[%emt 0:00:23]} g6 {[%emt 0:00:25]} 36. Kb2 {[%emt 0:00:33]} Ke7 {[%emt 0:00:17]} 37. Kc3 {[%emt 0:01:33]} Kd6 {[%emt 0:00:12]} 38. Ba4 {[%emt 0:00:09]} Kc5 {[%emt 0:00:25]} 39. Nb3+ {[%emt 0:00:06]} Kd6 {[%emt 0:00:11]} 40. Kd4 {[%emt 0:00:06]} Be6 {[%emt 0:00:10]} 41. h3 {[%emt 0:00:26]} Bc8 {[%emt 0:00:40]} 42. Bb5 {[%emt 0:01:20]} Be6 43. Nc1 {[%emt 0:00:04]} Bc8 {[%emt 0:02:16]} 44. Ne2 {[%emt 0:00:04]} Be6 {[%emt 0:00:49]} 45. Nc3 {[%emt 0:00:02]} h5 {[%emt 0:00:28]} 46. gxh5 {[%emt 0:00:16]} gxh5 {[%emt 0:00:09]} 47. h4 {[%emt 0:00:03]} Bf7 {[%emt 0:00:17]} 48. Ba4 {[%emt 0:00:11]} Be6 {[%emt 0:00:10]} 49. Bb3 {[%emt 0:00:04]} Bf7 {[%emt 0:00:30]} 50. Bxd5 {[%emt 0:00:04]} Bxd5 {[%emt 0:00:08]} 51. Nxd5 {[%emt 0:00:04]} b5 {[%emt 0:00:06]} 52. Nf6 {[%emt 0:00:07]} a4 {[%emt 0:00:14]} 53. Nxe4+ {[%emt 0:00:08]} Ke6 {[%emt 0:00:14]} 54. Ng3 {[%emt 0:00:54]} b4 {[%emt 0:00:45]} 55. f5+ {[%emt 0:01:11]} Kf6 {[%emt 0:00:07]} 56. e4 {[%emt 0:00:18]} b3 {[%emt 0:00:31]} 57. axb3 {[%emt 0:00:15]} axb3 {[%emt 0:00:34]} 58. Kc3 {[%emt 0:00:01]} Ke5 {[%emt 0:00:11]} 59. Kxb3 {[%emt 0:00:10]} Kf4 {[%emt 0:00:05]} 60. Nxh5+ {[%emt 0:00:09]} Kxe4 {[%emt 0:00:08]} 61. f6 {[%emt 0:00:07]} Kf5 {[%emt 0:01:46]} 62. f7 {[%emt 0:00:01]} Kg6 {[%emt 0:00:09]} 63. f8=Q {[%emt 0:00:08]} Kxh5 {[%emt 0:00:05]} 64. Qg7 {[%emt 0:00:08]} Kxh4 {[%emt 0:00:05]} 65. Kc4 {[%emt 0:00:04]} Kh3 {[%emt 0:00:13]} 66. Kd3 {[%emt 0:00:04]} Kh4 {[%emt 0:00:11]} 67. Ke4 {[%emt 0:00:05]} Kh3 {[%emt 0:00:34]} 68. Kf3 {[%emt 0:00:04]} Kh2 {[%emt 0:00:19]} 69. Qg2# {[%emt 0:00:04]} 1-0

[Event "2nd Kalyan Dombivali 2019"]
[Site "Kalyan"]
[Date "2019.02.03"]
[Round "10"]
[White "Kelaskar, Chinmay"]
[Black "Kshatriya Nitin Vekhande"]
[Result "1/2-1/2"]
[ECO "E68"]
[WhiteElo "1764"]
[BlackElo "1544"]
[Annotator "NA RC"]
[PlyCount "64"]
[EventDate "2019.01.28"]
[EventType "swiss"]
[EventRounds "10"]
[EventCountry "IND"]
[SourceTitle "playchess.com"]
[Source "ChessBase"]
[SourceQuality "1"]
[TimeControl "5400+30"]

1. Nf3 {[%emt 0:00:00]} Nf6 {[%emt 0:01:20]} 2. g3 {[%emt 0:00:01]} g6 {[%emt 0:00:08]} 3. Bg2 {[%emt 0:00:11]} Bg7 {[%emt 0:00:17]} 4. O-O {[%emt 0:00:13]} O-O {[%emt 0:00:11]} 5. d4 {[%emt 0:00:07]} d6 {[%emt 0:00:21]} 6. c4 {[%emt 0:00:21]} Nbd7 {[%emt 0:00:25]} 7. Nc3 {[%emt 0:00:22]} e5 {[%emt 0:00:55]} 8. e4 {[%emt 0:01:15]} c6 {[%emt 0:05:19]} 9. b3 {[%emt 0:04:02]} Re8 {[%emt 0:01:24]} 10. dxe5 {[%emt 0:07:52]} dxe5 {[%emt 0:02:02]} 11. Qc2 {[%emt 0:00:24]} Qc7 {[%emt 0:00:32]} 12. Ba3 {[%emt 0:02:26]} a6 {[%emt 0:12:26]} 13. c5 {[%emt 0:06:29]} Nf8 {[%emt 0:02:12]} 14. Bb2 {[%emt 0:09:48]} Bg4 {[%emt 0:01:13]} 15. Nd2 {[%emt 0:07:18]} Rad8 {[%emt 0:03:12]} 16. Nc4 {[%emt 0:05:29]} Ne6 {[%emt 0:03:34]} 17. Na4 {[%emt 0:03:46]} Nd4 {[%emt 0:00:55]} 18. Bxd4 {[%emt 0:01:14]} Rxd4 {[%emt 0:00:35]} 19. f3 {[%emt 0:07:32]} Be6 {[%emt 0:02:26]} 20. Nd6 {[%emt 0:06:10]} Rd8 {[%emt 0:01:17]} 21. Rad1 {[%emt 0:06:05]} Ne8 {[%emt 0:00:20]} 22. Rxd4 {[%emt 0:02:34]} exd4 {[%emt 0:00:10]} 23. Nxe8 {[%emt 0:00:38]} Rxe8 {[%emt 0:00:10]} 24. f4 {[%emt 0:00:37]} Rd8 {[%emt 0:00:51]} 25. Qd3 {[%emt 0:02:46]} Bh6 {[%emt 0:04:32]} 26. h3 {[%emt 0:05:50]} f5 {[%emt 0:00:29]} 27. e5 {[%emt 0:01:17]} g5 {[%emt 0:02:20]} 28. Nb2 {[%emt 0:10:06]} Qg7 {[%emt 0:01:12]} 29. Kh1 {[%emt 0:02:03]} Kh8 {[%emt 0:01:40]} 30. Qe2 {[%emt 0:02:42]} Rg8 {[%emt 0:01:39]} 31. Nd3 {[%emt 0:00:46]} gxf4 {[%emt 0:00:42]} 32. gxf4 {[%emt 0:00:29]} Qg3 1/2-1/2

[Event "2nd Kalyan Dombivali 2019"]
[Site "Kalyan"]
[Date "2019.02.03"]
[Round "10"]
[White "Shreyas Ghadi"]
[Black "Agarwal Shyam"]
[Result "1-0"]
[ECO "A51"]
[WhiteElo "1653"]
[BlackElo "1409"]
[Annotator "NA RC"]
[PlyCount "87"]
[EventDate "2019.01.28"]
[EventType "swiss"]
[EventRounds "10"]
[EventCountry "IND"]
[SourceTitle "playchess.com"]
[Source "ChessBase"]
[SourceQuality "1"]
[TimeControl "5400+30"]

1. d4 {[%emt 0:00:29]} Nf6 {[%emt 0:00:00]} 2. c4 {[%emt 0:00:05]} e5 {[%emt 0:00:00]} 3. e3 {[%emt 0:00:27]} exd4 {[%emt 0:00:27]} 4. exd4 {[%emt 0:00:02]} d5 {[%emt 0:00:32]} 5. Nc3 {[%emt 0:01:41]} Be6 {[%emt 0:04:50]} 6. Bg5 {[%emt 0:05:34]} c6 {[%emt 0:10:25]} 7. Qb3 {[%emt 0:07:36]} Qe7 {[%emt 0:07:19]} 8. O-O-O {[%emt 0:02:15]} Qb4 {[%emt 0:05:41]} 9. Bxf6 {[%emt 0:06:38]} Qxb3 {[%emt 0:02:29]} 10. axb3 {[%emt 0:00:03]} gxf6 11. Bd3 {[%emt 0:11:23]} Nd7 {[%emt 0:07:19]} 12. f4 {[%emt 0:00:27]} Bh6 {[%emt 0:03:10]} 13. Nge2 {[%emt 0:00:14]} f5 {[%emt 0:01:43]} 14. Kb1 {[%emt 0:01:03]} Nb6 {[%emt 0:02:49]} 15. c5 {[%emt 0:00:14]} Nd7 {[%emt 0:00:13]} 16. g4 {[%emt 0:00:04]} f6 {[%emt 0:03:54]} 17. gxf5 {[%emt 0:21:24]} Bf7 {[%emt 0:00:30]} 18. b4 {[%emt 0:00:27]} a6 {[%emt 0:00:22]} 19. Rde1 {[%emt 0:03:49]} Kd8 {[%emt 0:03:00]} 20. Rhf1 {[%emt 0:10:56]} Kc7 {[%emt 0:02:50]} 21. Ng3 {[%emt 0:00:30]} Rae8 {[%emt 0:00:46]} 22. Be2 {[%emt 0:00:02]} Rhg8 {[%emt 0:04:19]} 23. Bh5 {[%emt 0:02:12]} Rxe1+ {[%emt 0:11:33]} 24. Rxe1 {[%emt 0:00:02]} Rg7 {[%emt 0:00:52]} 25. Bxf7 {[%emt 0:05:42]} Rxf7 {[%emt 0:00:07]} 26. Nh5 {[%emt 0:00:02]} Kd8 {[%emt 0:02:48]} 27. Re6 {[%emt 0:00:55]} Bf8 {[%emt 0:05:29]} 28. Nd1 {[%emt 0:02:35]} Be7 {[%emt 0:00:29]} 29. Nf2 {[%emt 0:00:11]} Rf8 {[%emt 0:01:27]} 30. Ng4 {[%emt 0:01:33]} Ke8 {[%emt 0:01:51]} 31. Kc2 {[%emt 0:00:30]} Kd8 {[%emt 0:00:42]} 32. Kd3 {[%emt 0:01:09]} Ke8 {[%emt 0:01:54]} 33. Ke3 {[%emt 0:01:02]} Kd8 {[%emt 0:00:54]} 34. Kf3 {[%emt 0:00:56]} Rf7 {[%emt 0:00:29]} 35. Nh6 {[%emt 0:00:23]} Rf8 {[%emt 0:00:10]} 36. Ng7 {[%emt 0:00:52]} Nb8 {[%emt 0:01:04]} 37. Re2 {[%emt 0:01:50]} Kd7 {[%emt 0:00:35]} 38. Rg2 {[%emt 0:00:35]} Rh8 {[%emt 0:00:58]} 39. Ne6 {[%emt 0:00:06]} Ke8 {[%emt 0:00:49]} 40. Rg7 {[%emt 0:02:26]} Nd7 {[%emt 0:01:41]} 41. Ng8 {[%emt 0:08:16]} Bd8 {[%emt 0:02:05]} 42. Kg4 {[%emt 0:01:44]} Nf8 {[%emt 0:03:42]} 43. Nxd8 {[%emt 0:00:12]} Kxd8 {[%emt 0:00:02]} 44. Nxf6 {[%emt 0:00:01]} 1-0

[Event "2nd Kalyan Dombivali 2019"]
[Site "Kalyan"]
[Date "2019.02.03"]
[Round "10"]
[White "Chhabra Aakash"]
[Black "Subramanian, R M"]
[Result "1/2-1/2"]
[ECO "A45"]
[WhiteElo "1619"]
[BlackElo "1780"]
[Annotator "NA RC"]
[PlyCount "96"]
[EventDate "2019.01.28"]
[EventType "swiss"]
[EventRounds "10"]
[EventCountry "IND"]
[SourceTitle "playchess.com"]
[Source "ChessBase"]
[SourceQuality "1"]
[TimeControl "5400+30"]

1. d4 {[%emt 0:00:00]} Nf6 {[%emt 0:01:35]} 2. Bg5 {[%emt 0:00:00]} e6 {[%emt 0:02:10]} 3. e4 {[%emt 0:00:00]} h6 {[%emt 0:00:23]} 4. Bxf6 {[%emt 0:00:00]} Qxf6 {[%emt 0:00:09]} 5. c3 {[%emt 0:00:01]} d6 {[%emt 0:01:49]} 6. Bd3 {[%emt 0:00:07]} e5 {[%emt 0:01:12]} 7. Ne2 {[%emt 0:00:20]} Nc6 {[%emt 0:00:10]} 8. O-O {[%emt 0:01:08]} g5 {[%emt 0:04:35]} 9. Na3 {[%emt 0:04:52]} a6 {[%emt 0:00:44]} 10. Nc2 {[%emt 0:00:25]} Bg7 {[%emt 0:03:21]} 11. Bc4 {[%emt 0:05:45]} h5 {[%emt 0:05:36]} 12. Ne3 {[%emt 0:01:52]} Ne7 {[%emt 0:00:39]} 13. Qc2 {[%emt 0:04:48]} c6 {[%emt 0:04:26]} 14. dxe5 {[%emt 0:01:14]} dxe5 {[%emt 0:00:41]} 15. Ng3 {[%emt 0:00:37]} g4 {[%emt 0:11:50]} 16. Ngf5 {[%emt 0:01:46]} Bxf5 {[%emt 0:00:53]} 17. Nxf5 {[%emt 0:00:08]} Nxf5 {[%emt 0:00:38]} 18. exf5 {[%emt 0:00:08]} O-O-O {[%emt 0:00:50]} 19. Rad1 {[%emt 0:02:17]} h4 {[%emt 0:03:40]} 20. Qe4 {[%emt 0:04:42]} g3 {[%emt 0:04:41]} 21. h3 {[%emt 0:10:15]} Bh6 {[%emt 0:03:30]} 22. fxg3 {[%emt 0:11:38]} hxg3 {[%emt 0:00:34]} 23. Rfe1 {[%emt 0:05:24]} Bf4 {[%emt 0:01:11]} 24. Kf1 {[%emt 0:04:28]} Rh5 {[%emt 0:03:37]} 25. Rxd8+ {[%emt 0:02:02]} Kxd8 {[%emt 0:00:54]} 26. Rd1+ {[%emt 0:00:53]} Kc7 {[%emt 0:00:09]} 27. Bd3 {[%emt 0:04:23]} Rh4 {[%emt 0:02:47]} 28. Be2 {[%emt 0:01:52]} Qe7 {[%emt 0:04:38]} 29. Qb4 {[%emt 0:03:09]} Qxb4 {[%emt 0:06:36]} 30. cxb4 {[%emt 0:00:06]} f6 {[%emt 0:00:55]} 31. Bg4 {[%emt 0:02:18]} Rh7 {[%emt 0:01:48]} 32. Ke2 {[%emt 0:00:31]} e4 {[%emt 0:01:50]} 33. Rd4 {[%emt 0:05:37]} Re7 {[%emt 0:00:08]} 34. b3 {[%emt 0:01:34]} b6 {[%emt 0:01:28]} 35. Bh5 {[%emt 0:01:08]} c5 {[%emt 0:00:55]} 36. bxc5 {[%emt 0:00:28]} bxc5 {[%emt 0:00:02]} 37. Rd5 {[%emt 0:01:45]} Kc6 {[%emt 0:00:53]} 38. Rd8 {[%emt 0:00:35]} Kb5 {[%emt 0:02:14]} 39. a3 {[%emt 0:04:34]} Kc6 {[%emt 0:01:34]} 40. Re8 {[%emt 0:01:35]} Rxe8 {[%emt 0:02:02]} 41. Bxe8+ {[%emt 0:00:07]} Kd5 {[%emt 0:00:03]} 42. Bf7+ {[%emt 0:00:24]} Kd4 {[%emt 0:00:48]} 43. a4 {[%emt 0:00:11]} a5 {[%emt 0:00:04]} 44. Bc4 {[%emt 0:00:12]} Bh6 {[%emt 0:01:57]} 45. Bg8 {[%emt 0:00:16]} Ke5 {[%emt 0:00:33]} 46. Be6 {[%emt 0:00:07]} Kd4 {[%emt 0:00:03]} 47. Bg8 {[%emt 0:00:10]} Ke5 {[%emt 0:00:02]} 48. Be6 {[%emt 0:00:09]} Kd4 {[%emt 0:00:01]} 1/2-1/2